Cogmind - Beta 13 @@@ ROGUE MODE // 2024.03.29 @ 09:24:45 Player: H3-RMN Result: Destroyed by KX-TWN(R) with Subdweller Machine Gun Performance ------------- Evolutions (0) 0 Regions Visited (2) 400 Robots Destroyed (11) 55 Value Destroyed (374) 374 Prototype IDs (0) 0 Alien Tech Used (0) 0 Bonus (0) 0 TOTAL SCORE: 829 Bonus ------- None Cogmind --------- Core Integrity 0/250 Matter 222/300 Energy 95/100 System Corruption 0% Temperature Cool (0) Movement Treading (160) Location -10/Subcaves Parts ------- > --- POWER (1) -------- (None) > --- PROPULSION (2) --- Light Treads Subdweller Monowheel > --- UTILITY (2) ------ Small Storage Unit Power Shielding > --- WEAPON (2) ------- Medium Laser > --- INVENTORY (8) ---- Aluminum Leg Compact Wheel Subdweller Monowheel Subdweller Monowheel Subdweller Monowheel Peak State ------------ > --- POWER ------------ Ion Engine > --- PROPULSION ------- Light Treads Subdweller Monowheel > --- UTILITY ---------- Small Storage Unit Power Shielding > --- WEAPON ----------- Subdweller Machine Gun Light Cannon > --- INVENTORY -------- Light Treads Aluminum Leg Compact Wheel Subdweller Monowheel Subdweller Monowheel Subdweller Monowheel Medium Laser Light Assault Rifle [Rating: 10] Favorites ----------- Power Ion Engine Engine Ion Engine Propulsion Light Treads Treads Light Treads Wheel Wheel Utility Small Storage Unit Device Seismic Detector Storage Small Storage Unit Protection Power Shielding Weapon Light Assault Rifle Energy Gun Medium Laser Ballistic Gun Light Assault Rifle Ballistic Cannon Light Cannon Build | -11 -10 -10 ------- Run | Yrd Mat Sub Slots Evolved . | . . . Power . | . . . Propulsion . | . . . Utility . | . . . Weapon . | . . . Parts Attached 18 | 7 1 10 Power 2 | 1 . 1 Engine 2 | 1 . 1 Core . | . . . Reactor . | . . . Propulsion 7 | 2 1 4 Treads 2 | 1 . 1 Leg . | . . . Wheel 5 | 1 1 3 Hover . | . . . Flight . | . . . Utility 3 | 2 . 1 Device 1 | 1 . . Storage 1 | 1 . . Processor . | . . . Hackware . | . . . Protection 1 | . . 1 Artifact . | . . . Weapon 6 | 2 . 4 Energy Gun 1 | . . 1 Energy Cannon . | . . . Ballistic Gun 4 | 2 . 2 Ballistic Cannon 1 | . . 1 Launcher . | . . . Special Weapon . | . . . Impact Weapon . | . . . Slashing Weapon . | . . . Piercing Weapon . | . . . Special Melee Weapon . | . . . Unidentified Prototypes . | . . . Parts Lost 10 | . 1 9 Power 2 | . . 2 Propulsion 3 | . 1 2 Utility 1 | . . 1 Weapon 4 | . . 4 Highest Loss Streak 5 | . 1 5 To Critical Strikes . | . . . Average Slot Usage (%) 96 | . 99 88 Engine 12 | . 14 7 Treads 13 | . 14 13 Wheel 13 | . 13 12 Device 11 | . 14 6 Storage 14 | . 14 14 Protection 2 | . . 6 Ballistic Gun 23 | . 28 14 Ballistic Cannon 3 | . . 10 Naked Turns . | . . . Heaviest Build 18 | 13 13 18 Greatest Support 20 | 20 16 20 Greatest Overweight (x) 1 | . 1 1 Average Overweight (x) . | . . . Largest Inventory Capacity 8 | 8 8 8 Average Capacity 7 | 6 8 8 Most Carried 8 | 7 8 8 Average Carried 7 | 4 7 7 Final Capacity 8 | 8 8 8 Final Carried 8 | 7 8 5 Class Distribution -------------------- 100% | Mutant Dominant Class ---------------- Mutant | -10/Materials Mutant | -10/Subcaves Resources | -11 -10 -10 ----------- Run | Yrd Mat Sub Matter Collected 454 | 282 29 143 Remotely . | . . . Salvage Created 409 | 107 89 213 Parts 23 | 6 5 12 Haulers Intercepted . | . . . Recyclers Shooed . | . . . Parts Field Recycled . | . . . Retrieved Matter . | . . . Parts Self-Destructed 8 | . . 8 Prevented . | . . . Kills | -11 -10 -10 ------- Run | Yrd Mat Sub Combat Hostiles Destroyed 9 | . 2 7 Guns 5 | . 2 3 Cannons 4 | . . 4 Classes Destroyed 4 | 2 1 1 Tunneler 1 | 1 . . Recycler 1 | 1 . . Grunt 2 | . 2 . Subdweller 7 | . . 7 Best Kill Streak 3 | 2 2 3 Combat Bots Only 3 | . 2 3 Max Kills in Single Turn 1 | 1 1 1 Gunslinging . | . . . Exploded . | . . . Melee . | . . . Uniques/NPCs Destroyed . | . . . Combat | -11 -10 -10 -------- Run | Yrd Mat Sub Hostile Shots Fired 87 | . 11 76 Missed 22 | . 1 21 Damage Taken 1341 | . 140 1201 Core 264 | . 12 252 Absorbed by Shields . | . . . Redirected to Shielding 32 | . . 32 Core Remaining (%) 100 | 100 . . Volleys Fired 71 | 6 12 53 Largest 2 | 2 2 2 Hottest 70 | 40 40 70 Shots Fired 128 | 12 24 92 Gun 105 | 12 24 69 Cannon 23 | . . 23 Launcher . | . . . Special . | . . . Kinetic 113 | 12 24 77 Thermal 15 | . . 15 Explosive . | . . . Electromagnetic . | . . . Robot Hit Streak 14 | 4 8 14 Robot Miss Streak 2 | 1 2 2 Penetration Max . | . . . Secondary Targets . | . . . Shots Hit Robots 100 | 9 15 76 Core Hits 26 | 3 6 17 Critical Kills . | . . . Critical Parts Destroyed . | . . . Critical Strikes 3 | . . 3 Burn 1 | . . 1 Blast 2 | . . 2 Melee Attacks . | . . . Impact . | . . . Slashing . | . . . Piercing . | . . . Sneak Attacks . | . . . Combat Hostiles . | . . . Follow-up Attacks . | . . . Damage Inflicted 1308 | 78 128 1102 Guns 962 | 78 128 756 Cannons 346 | . . 346 Explosions . | . . . Melee . | . . . Ramming . | . . . Kinetic 1132 | 78 128 926 Thermal 176 | . . 176 Explosive . | . . . Electromagnetic . | . . . Impact . | . . . Slashing . | . . . Piercing . | . . . Highest Corruption . | . . . Average Corruption . | . . . Corruption Purged . | . . . Corruption Blocked . | . . . Overload Shots . | . . . Overflow Damage . | . . . Projectiles . | . . . Explosions . | . . . Melee . | . . . Knockbacks 3 | . . 3 Impact . | . . . Kinetic 3 | . . 3 Secondary . | . . . Self-Inflicted Damage . | . . . Shots . | . . . Rammed . | . . . Targets Rammed . | . . . Kicked . | . . . Crushed . | . . . Highest Temperature 18 | . 18 . Average Temperature 10 | . 10 . Received Heat Transfer 198 | . 78 120 Siege Activations . | . . . Robots Corrupted . | . . . Combat Hostiles . | . . . Parts Fried . | . . . Impact Corruptions . | . . . Robots Melted . | . . . Combat Hostiles . | . . . Parts Melted 1 | . . 1 Heat Transferred 592 | . . 592 Parts Sabotaged . | . . . Parts Stolen . | . . . Parts Stripped . | . . . Power Chain Reactions . | . . . Alert | -11 -10 -10 ------- Run | Yrd Mat Sub Peak Influence 77 | 10 77 . Initial 6 | . 6 . Average 31 | 3 35 . Maximum Alert Level . | . . . Low Security (%) 100 | 100 100 . Level 1 . | . . . Level 2 . | . . . Level 3 . | . . . Level 4 . | . . . Level 5 . | . . . High Security . | . . . Max Security . | . . . Squads Dispatched . | . . . Investigation . | . . . Extermination . | . . . Reinforcement . | . . . Assault . | . . . Garrison . | . . . Intercept . | . . . Searches Triggered . | . . . Construction Impeded . | . . . Haulers Reinforced . | . . . Active Scanning Responses . | . . . Cargo Convoy Interrupts . | . . . Stealth | -11 -10 -10 --------- Run | Yrd Mat Sub Distress Signals 1 | . 1 . Communications Jammed . | . . . Distress Signals . | . . . Times Spotted 11 | . 3 8 Peak Tracking Total 4 | . 4 3 Tactical Retreats . | . . . Traps | -11 -10 -10 ------- Run | Yrd Mat Sub Traps Triggered . | . . . Indirectly . | . . . Trap Hack Attempts . | . . . Triggered . | . . . Disarmed . | . . . Reprogrammed . | . . . Reused . | . . . Traps Extracted . | . . . Installed . | . . . Triggered . | . . . Machines | -11 -10 -10 ---------- Run | Yrd Mat Sub Machines Disabled . | . . . Max in Single Turn . | . . . Machines Repaired . | . . . Machines Dismantled . | . . . Machines Sabotaged . | . . . Overloaded Fab Kills . | . . . Hacking | -11 -10 -10 --------- Run | Yrd Mat Sub Machines Accessed 2 | . 2 . Terminals 2 | . 2 . Fabricators . | . . . Repair Stations . | . . . Recycling Units . | . . . Scanalyzers . | . . . Garrison Access . | . . . Total Hacks 4 | . 4 . Successful 1 | . 1 . Failed 3 | . 3 . Catastrophic 2 | . 2 . Database Lockouts . | . . . Manual 3 | . 3 . Terminals 4 | . 4 . Fabricators . | . . . Repair Stations . | . . . Recycling Units . | . . . Scanalyzers . | . . . Garrison Access . | . . . Terminal Hacks 1 | . 1 . Branch Access Points 1 | . 1 . Fabricator Hacks . | . . . Repair Station Hacks . | . . . Recycling Unit Hacks . | . . . Scanalyzer . | . . . Garrison Access Hacks . | . . . Unauthorized Hacks . | . . . Terminals . | . . . Fabricators . | . . . Repair Stations . | . . . Recycling Units . | . . . Scanalyzers . | . . . Garrison Access . | . . . Data Cores Recovered . | . . . Used . | . . . Hacking Detections 2 | . 2 . Full Trace Events 1 | . 1 . Feedback Events . | . . . Feedback Blocked . | . . . Robot Schematics Acquired . | . . . Robots Built . | . . . Authchips . | . . . Time . | . . . Total Robot Build Rating . | . . . Part Schematics Acquired . | . . . Parts Built . | . . . Authchips . | . . . Time . | . . . Total Part Build Rating . | . . . Parts Repaired . | . . . Time . | . . . Parts Recycled . | . . . Recycled Matter . | . . . Retrieved Matter . | . . . Retrieved Components . | . . . Parts Scanalyzed . | . . . Part Schematics Acquired . | . . . Parts Damaged . | . . . Bothacking | -11 -10 -10 ------------ Run | Yrd Mat Sub Used RIF Installer . | . . . Robots Hacked . | . . . Non-combat . | . . . Combat . | . . . Robot Hacks Applied . | . . . Relay Couplers Released . | . . . Fabnet Peak Effective % . | . . . Robots Rewired . | . . . Allies Hacked . | . . . Hacks Repelled . | . . . Allies | -11 -10 -10 -------- Run | Yrd Mat Sub Total Allies . | . . . Largest Group . | . . . Highest-Rated Group . | . . . Highest-Rated Ally . | . . . Total Orders . | . . . Ally Attacks . | . . . Total Damage . | . . . Kills . | . . . Allies Corrupted . | . . . Allies Melted . | . . . Intel | -11 -10 -10 ------- Run | Yrd Mat Sub Robot Analysis Total . | . . . Derelict Logs Recovered 1 | . . 1 Drone Launches . | . . . Drone Recoveries . | . . . Exploration | -11 -10 -10 ------------- Run | Yrd Mat Sub Turns Passed 1154 | 93 723 338 Spaces Moved 277 | 60 77 140 Core 1 | 1 . . Treads 8 | 1 . 7 Legs . | . . . Wheels 268 | 58 77 133 Hover . | . . . Flight . | . . . Fastest Speed 50 | 50 95 95 Average Speed 105 | 100 97 112 Slowest Speed 160 | 160 100 160 Overloaded Moves . | . . . Propulsion Burnouts . | . . . Robots Hopped . | . . . Cave-ins Triggered . | . . . Exploration Rate (%) 12 | 4 20 14 Regions Visited 2 Branch Regions 1 Pre-discovered Areas . | . . . Known Exits Taken . | . . . Unknown Exits Taken 2 | 1 1 . Scrap Searched . | . . . Spaces Dug . | . . . Terrain Destroyed . | . . . Melee . | . . . Projectile . | . . . AOE . | . . . Terrain Rammed . | . . . Walls Destroyed . | . . . Machines Disabled . | . . . Actions | -11 -10 -10 --------- Run | Yrd Mat Sub Total 1022 | 79 705 238 Wait 641 | . 614 27 Move 275 | 59 76 140 Hop . | . . . Pick Up 13 | 7 2 4 Fast Attach 8 | 7 . 1 Attach 7 | . 1 6 Detach . | . . . Swap 3 | . . 3 Drop 4 | . . 4 Fire 71 | 6 12 53 Melee . | . . . Ram . | . . . Kick . | . . . Crush . | . . . Escape Stasis . | . . . Rewire . | . . . Trap . | . . . Miscellaneous . | . . . Route ------- -11/Scrapyard -10/Materials (discovered 3 exits: Min x2 / [*Sub]) -10/Subcaves History --------- Turn | Location | Event 45 | -11/Scrapyard | Discovered new exit (range 14) 94 | -11/Scrapyard | Entered Materials 189 | -10/Materials | Identified exit to Mines 307 | -10/Materials | Build established: Mutant 793 | -10/Materials | Discovered new exit (range 4) 817 | -10/Materials | Entered Subcaves 878 | -10/Subcaves | Lost 3 parts (1p1n1w) 1028 | -10/Subcaves | Learned 4 Materials zone layouts 1057 | -10/Subcaves | A swath of the cavern ceiling suddenly collapsed 1087 | -10/Subcaves | A Subdweller sparked back to life 1112 | -10/Subcaves | Core integrity fell below 50% 1131 | -10/Subcaves | Core integrity fell below 20% 1155 | -10/Subcaves | Destroyed by KX-TWN(R) with Subdweller Machine Gun Last Messages --------------- 01004_ Acquired Com. Wheel. 01006_ Acquired Sub. Monowheel. 01028_ Acquired derelict log, extracted data. Data stored: Materials zone layouts (x4). A swath of the cavern ceiling suddenly collapses. 01087_ 88-QJ7(R) creaks and sparks as it begins to move. 01096_ 88-QJ7(R) knocked back. 01097_ Lgt. Treads destroyed. 01101_ Lgt. Cannon destroyed. 01123_ Sub. Machine Gun destroyed. 01128_ Lgt. Assault Rifle destroyed. 01132_ Sub. Optics melted. 01132_ 88-QJ7(R) destroyed. 01142_ IL-TVL(R) destroyed. 01144_ KX-TWN(R) affixes Scrap Shield Fragment to Scrap Shield. 01150_ KX-TWN(R) suffers critical hit (Burn). 01153_ Ion Engine destroyed. Map ----- +----------------------------------------------------+ | ?????????????????????????????????????????????????? | | ?????????????????????????????????????????????????? | | ?????????????????????????????????????????????????? | | ?????????????????????????????????????????????????? | | ?????????????????????????????????????????????????? | | ?????????????????????????????????????????????????? | | ?????????????????????????????????????????????????? | | ?????????????????????????????????????????????????? | | ######???????????????????????????????????????????? | | ##?####?????????????????????????????????????? | | ### ####??????????????????????????????????? | | ##?????????????????????????????????? | | ###???????????????????????????????? | | #???????? ##????????? ##????????? | | # ## #####?? #???????? #????????? | | ######## "### # #??????? ???????? | | ??????## #"""# #?????? ???????? | | ???# ## """# #???? ????????? | | ??? "" "## # ####???? ???????????? | | ??? "" #####?# ##????## #?????????????? | | ??? "" ##?????#### #??????????????? | | ??? "" #### ###??## %#????????????????? | | ????## ##??## #### R #####?????????????? | | ?????###????## ## =%& < #?????????????? | | ??????????### ## *%#" & #?????????????? | | ?????????## ## @ %*# #?????????????? | | ????????## ##?" "#?????????????? | | ????????# ####?? & #?????????????? | | ?????# ### ###???? ????????????? | | ????# ??## ???????????? | | ???# ????# ## ## ??????????? | | ???## #????# ## # ## ## ###??#?????????? | | ????### ?????# #########????????????????????? | | ??????# ??????## #????????????????????????????? | | ?????? ????????## #????????????????????????????? | | ????????????????# ????????????????????????????? | | ????????????????## #???????????????????????????? | | ?????????????????## #???????????????????????????? | | ??????????????????####???????????????????????????? | | ?????????????????????????????????????????????????? | | ?????????????????????????????????????????????????? | | ?????????????????????????????????????????????????? | | ?????????????????????????????????????????????????? | | ?????????????????????????????????????????????????? | | ?????????????????????????????????????????????????? | | ?????????????????????????????????????????????????? | | ?????????????????????????????????????????????????? | | ?????????????????????????????????????????????????? | | ?????????????????????????????????????????????????? | | ?????????????????????????????????????????????????? | +----------------------------------------------------+ Best States ------------- Heat Dissipation 25 Energy Generation 10 Energy Capacity 250 Matter Stores 300 Matter Capacity 300 Sight Range 16 Terrain Scan Density 10 Power Shielding 33 Evasion (%) 41 Recoil Reduction 1 Item Schematics ----------------- None Robot Schematics ------------------ None Fabricated ------------ Nothing Alien Tech Used ----------------- None Achievements -------------- None Challenges ------------ None Game ------ Seed FortressSupersonicPendant Manual? 0 Play Time 00:07:01 Cumulative 674.0 hours Start 2024.03.29 @ 09:19:54 End 2024.03.29 @ 09:24:45 Sessions 1 Manual Loads 0 Difficulty Rogue Special Mode None Game No. 273 Rogue 245 Adventurer 3 Explorer 25 Win Type - Total 15 Types 10/2/1/1/0/1/0/0/0 Lore% 91 Gallery% 96 Achievement% 85 Wizard Run 0 Options --------- Layout 2 ASCII 0 Keyboard 0 Movement Numpad Keybinds 0 Fullscreen 2 Font 24/Smallcaps Map View 50x44 Zoom Use 0% Tactical HUD 1 Map Filters NONE Filters NONE Steam 1 RUN: 0c992408-39be-4d61-8711-4700f20600ee